bitfinex-derivatives/quotes_ETHF0:USTF0_20250607
["timestamp","ask_amount","ask_price","bid_price","bid_amount"]
[1749327315447,3.2078,2525.1,2525.0,0.7917]
[1749327315651,3.2078,2525.1,2525.0,5.7257]
[1749327319256,3.2078,2525.1,2524.9,23.951]
[1749327319257,3.99949,2525.1,2524.9,23.951]
[1749327319460,0.6776,2525.0,2524.9,24.74271]
[1749327319754,1.9668,2525.0,2524.9,29.67671]
[1749327320363,1.9668,2525.0,2524.9,24.74271]
[1749327320761,1.9668,2525.0,2524.9,29.67671]
[1749327323470,1.9668,2525.0,2524.9,24.74271]
[1749327323663,1.9668,2525.0,2524.9,29.67671]
[1749327324363,1.9668,2525.0,2524.9,24.74271]
[1749327324563,1.9668,2525.0,2524.9,29.67671]
[1749327326269,1.9668,2525.0,2524.9,24.74271]
[1749327326469,1.9668,2525.0,2524.9,29.67671]
[1749327328471,1.9668,2525.0,2524.9,24.74271]
[1749327328671,1.9668,2525.0,2524.9,29.67671]
[1749327332975,1.9668,2525.0,2524.9,24.74271]
[1749327333170,2.7585,2525.0,2524.9,29.67671]
[1749327333966,1.9668,2525.0,2524.9,29.67671]
[1749327335274,2.7585,2525.0,2524.9,28.885]
[1749327335574,3.4441,2525.0,2524.9,29.67673]
[1749327335978,3.51301172,2525.0,2524.9,29.67673]
[1749327337478,3.51301172,2525.0,2524.9,29.61673]
[1749327339074,3.51301172,2525.0,2524.9,24.74273]
[1749327339275,3.51301172,2525.0,2524.9,29.61673]
[1749327339776,3.51301172,2525.0,2524.9,24.74273]
[1749327339981,3.51301172,2525.0,2524.9,29.61673]
[1749327340182,3.51301172,2525.0,2524.9,28.825]
[1749327340582,4.67446309,2525.0,2524.9,28.825]
[1749327340784,4.67446309,2525.0,2524.9,23.951]
[1749327341083,4.67446309,2525.0,2524.9,28.825]
[1749327341384,4.67446309,2525.0,2524.9,29.61673]
[1749327342085,3.88276309,2525.0,2524.9,29.61673]
[1749327342577,4.67446309,2525.0,2524.9,28.825]
[1749327344480,4.67449627,2525.0,2524.9,28.825]
[1749327344681,4.67449627,2525.0,2524.9,23.951]
[1749327344883,4.67449627,2525.0,2524.9,28.825]
[1749327345474,4.67449627,2525.0,2524.9,23.951]
[1749327345681,0.7918,2524.7,2524.6,4.87994024]
[1749327345987,3.9996,2524.7,2524.6,4.87994024]
[1749327346187,5.16108455,2524.7,2524.6,4.87994024]
[1749327347986,5.16108455,2524.7,2524.6,0.00594024]
[1749327348185,5.16108455,2524.7,2524.6,4.87994024]
[1749327349084,3.2078,2524.7,2524.6,5.67177024]
[1749327351986,3.2078,2524.7,2524.6,0.79777024]
[1749327352186,3.2078,2524.7,2524.6,5.67177024]
[1749327353190,3.27671172,2524.7,2524.6,5.67177024]
[1749327353780,3.27671172,2524.7,2524.6,0.00594024]
[1749327353781,4.06851172,2524.7,2524.6,0.00594024]
[1749327353980,4.43641243,2524.7,2523.8,23.953]
[1749327354192,3.2078,2524.1,2523.9,0.79205]
[1749327354384,3.2078,2524.1,2524.0,0.79202]
[1749327356395,0.79788024,2524.3,2524.2,0.79195]
[1749327356789,1.37874024,2524.3,2524.2,0.79195]
[1749327356994,2.17066024,2524.3,2524.2,0.79195]
[1749327357197,2.80406024,2524.3,2524.2,0.79195]
[1749327357598,2.80406024,2524.3,2524.2,5.66595]
[1749327359800,6.01186024,2524.3,2524.2,5.66595]
[1749327360293,5.21994024,2524.3,2524.2,5.66595]
[1749327365005,0.00594024,2524.3,2524.2,5.66595]
[1749327365407,3.2078,2524.9,2524.5,1.97965]
[1749327365612,3.99953,2524.9,2524.8,0.79177]
[1749327365806,5.15749729,2524.9,2524.8,0.79177]
[1749327366207,4.36576729,2524.9,2524.8,0.79177]
[1749327366711,3.2078,2524.9,2524.8,0.79177]
[1749327367009,3.99954,2524.9,2524.8,0.79177]
[1749327367814,3.2078,2524.9,2524.8,0.79177]
[1749327368806,3.99954,2524.9,2524.8,0.79177]
[1749327369516,3.2078,2524.9,2524.8,0.79177]
[1749327369810,3.99953,2524.9,2524.8,0.79177]
[1749327370210,3.2078,2524.9,2524.8,0.79177]
[1749327370412,4.36712134,2524.9,2524.8,0.79177]
[1749327370601,3.2078,2524.9,2524.8,0.79177]
[1749327370806,5.15892165,2524.9,2524.8,0.79177]
[1749327371005,4.36718165,2524.9,2524.8,0.79177]
[1749327371406,3.2078,2524.9,2524.8,0.79177]
[1749327371805,0.7918,2524.7,2524.6,6.1012]
[1749327372009,0.7918,2524.8,2524.7,0.7918]
[1749327372204,0.79184,2524.6,2524.5,0.79183]
[1749327372405,3.2078,2524.6,2524.5,4.854]
[1749327373113,3.99965,2524.6,2524.5,5.64586]
[1749327373712,3.99965,2524.6,2524.5,0.79186]
[1749327374012,3.99964,2524.6,2524.5,5.64586]
[1749327376708,3.2078,2524.6,2524.5,5.64586]
[1749327378421,3.99963,2524.6,2524.5,5.64586]
[1749327378614,3.2078,2524.6,2524.5,5.64586]
[1749327379214,3.9034,2524.6,2524.5,5.64586]
[1749327379517,3.2078,2524.6,2524.5,0.79186]
[1749327379714,3.2078,2524.6,2524.5,5.64586]
[1749327381517,3.27671172,2524.6,2524.5,5.64586]
[1749327389922,0.06891172,2524.6,2524.5,5.64586]
[1749327392815,1.97965,2524.5,2523.8,23.95994024]
[1749327393014,3.2078,2524.3,2523.9,4.854]
[1749327393221,1.9434,2524.2,2524.1,0.79198]
[1749327396828,2.01231172,2524.2,2524.1,0.79198]
[1749327405029,2.01231172,2524.2,2524.1,5.62098]
[1749327407127,0.79205,2523.9,2523.8,0.79799024]
[1749327407331,3.2078,2523.9,2523.8,5.62702024]
[1749327408124,3.2078,2523.9,2523.8,0.79802024]
[1749327408320,3.2078,2523.9,2523.8,5.62702024]
[1749327408524,5.34644,2523.9,2523.8,0.79802024]
[1749327408727,5.34644,2523.9,2523.8,5.62702024]
[1749327408929,4.5544,2523.9,2523.8,0.79802024]
[1749327409127,4.5544,2523.9,2523.8,5.62702024]
[1749327409425,4.5544,2523.9,2523.8,0.79802024]
[1749327409934,4.5544,2523.9,2523.8,5.62702024]
[1749327411534,4.5544,2523.9,2523.8,0.79802024]
[1749327411737,4.5544,2523.9,2523.8,5.62702024]
[1749327413732,3.2078,2523.9,2523.8,5.62702024]
[1749327417337,2.81979,2524.1,2524.0,0.792]
[1749327417533,6.02759,2524.1,2524.0,0.792]
[1749327418038,2.81979,2524.1,2524.0,0.792]
[1749327418227,6.02759,2524.1,2524.0,0.792]
[1749327418927,5.2356,2524.1,2524.0,0.792]
[1749327420139,5.2356,2524.1,2523.8,4.83494024]
[1749327420335,2.13103,2524.0,2523.9,0.79201]
[1749327420839,1.339,2524.0,2523.9,0.79201]
[1749327421439,2.13102,2524.0,2523.9,0.79201]
[1749327421640,1.339,2524.0,2523.9,0.79201]
[1749327422437,2.49974793,2524.0,2523.9,0.79201]
[1749327422738,2.49975022,2524.0,2523.9,0.79201]
[1749327422934,3.29176022,2524.0,2523.9,0.79201]
[1749327423144,2.49975022,2524.0,2523.9,5.62201]
[1749327424034,3.29176022,2524.0,2523.9,5.62201]
[1749327425142,2.49975022,2524.0,2523.9,5.62201]
[1749327426042,1.16075022,2524.0,2523.9,5.62201]
[1749327428143,3.2078,2524.1,2524.0,0.79201]
[1749327428345,4.3685672,2524.1,2524.0,0.79201]
[1749327429046,3.2078,2524.1,2524.0,0.79201]
[1749327434950,0.79196,2524.2,2524.1,0.79198]
[1749327435159,5.72491633,2524.2,2524.1,0.79198]
[1749327435850,6.51686633,2524.2,2524.1,0.79198]
[1749327436253,5.72491633,2524.2,2524.1,0.79198]
[1749327438141,6.51686633,2524.2,2524.1,5.56498]
[1749327438548,5.72491633,2524.2,2524.1,5.56498]
[1749327439356,5.72466176,2524.2,2524.1,5.56498]
[1749327441457,5.79357348,2524.2,2524.1,5.56498]
[1749327441851,5.79357348,2524.2,2524.1,4.773]
[1749327442055,6.58552348,2524.2,2524.1,4.773]
[1749327442257,6.58552348,2524.2,2524.1,5.56498]
[1749327442457,6.51661176,2524.2,2524.1,5.56498]
[1749327443257,6.51661176,2524.2,2524.1,0.79198]
[1749327443455,6.51661176,2524.2,2524.1,5.56498]
[1749327446257,6.51661176,2524.2,2524.1,0.79198]
[1749327446458,6.51661176,2524.2,2524.1,5.56498]
[1749327451059,4.36856176,2524.2,2524.1,5.56498]
[1749327454753,3.2078,2524.2,2524.1,5.56498]
[1749327460463,0.6599,2524.5,2524.4,0.79189]
[1749327460464,3.8677,2524.5,2524.4,0.79189]
[1749327460766,6.43844954,2524.5,2524.4,0.79189]
[1749327461166,7.23030954,2524.5,2524.4,0.79189]
[1749327461369,6.43844954,2524.5,2524.4,0.79189]
[1749327462273,7.23030954,2524.5,2524.4,0.79189]
[1749327464571,7.23030954,2524.5,2524.4,5.50689]
[1749327464772,7.23030954,2524.5,2524.4,4.715]
[1749327464974,7.23030954,2524.5,2524.4,5.50689]
[1749327468777,7.23030954,2524.5,2524.4,0.79189]
[1749327468981,7.23030954,2524.5,2524.4,5.50689]
[1749327470777,7.23030954,2524.5,2524.4,0.79189]
[1749327470980,7.23030954,2524.5,2524.4,5.50689]
[1749327471778,0.79191,2524.4,2524.3,0.7919]
[1749327471972,1.97175954,2524.4,2524.3,5.5069]
[1749327472172,2.48434954,2524.4,2524.3,5.5069]
[1749327472872,3.27623954,2524.4,2524.3,5.5069]
[1749327474681,6.48403954,2524.4,2524.3,5.5069]
[1749327475183,6.48403954,2524.4,2524.3,0.7919]
[1749327475374,6.48403954,2524.4,2524.3,5.5069]
[1749327476384,5.69214954,2524.4,2524.3,5.5069]
[1749327476579,6.48403954,2524.4,2524.3,5.5069]
[1749327476981,6.48429371,2524.4,2524.3,5.5069]
[1749327477380,5.69240371,2524.4,2524.3,5.5069]
[1749327484086,5.69240371,2524.4,2524.0,23.958]
[1749327484286,2.63961,2524.5,2524.1,5.50698]
[1749327484287,3.2078,2524.2,2524.1,5.50698]
[1749327484586,4.38790371,2524.2,2524.1,5.50698]
[1749327484786,5.07740371,2524.2,2524.1,5.50698]
[1749327485482,5.07740371,2524.2,2523.8,0.79798024]
[1749327485786,3.2078,2523.9,2523.8,0.79798024]
[1749327485981,3.2078,2523.9,2523.8,5.51298024]
[1749327486179,5.2291,2523.9,2523.8,5.51298024]
[1749327487687,5.2291,2523.9,2523.8,0.79798024]
[1749327487887,5.2291,2523.9,2523.8,5.51298024]
[1749327488784,5.2291,2523.9,2523.8,0.79798024]
[1749327489088,5.2291,2523.9,2523.8,5.51398024]
[1749327489580,5.2291,2523.9,2523.8,5.51098024]
[1749327489780,5.2291,2523.9,2523.8,0.79798024]
[1749327489977,5.2291,2523.9,2523.8,5.51098024]
[1749327490182,6.02114,2523.9,2523.8,0.79798024]
[1749327490382,5.2291,2523.9,2523.8,5.51098024]
[1749327491277,6.02114,2523.9,2523.8,0.00594024]
[1749327491484,7.20095905,2523.9,2523.8,0.00594024]
[1749327493686,7.20095905,2523.9,2523.8,4.71894024]
[1749327494879,7.20095905,2523.9,2523.8,0.00594024]
[1749327495084,7.20095905,2523.9,2523.8,4.71894024]
[1749327498985,7.20095905,2523.9,2523.8,5.51102024]
[1749327499191,6.40891905,2523.9,2523.8,5.51102024]
[1749327499392,6.40891905,2523.9,2523.8,0.79802024]
[1749327499590,3.2078,2524.2,2523.8,4.71894024]
[1749327499794,1.17643918,2524.1,2524.0,0.79201]
[1749327499995,3.878,2524.2,2524.1,0.79198]
[1749327500190,5.0541942,2524.2,2524.1,0.79198]
[1749327501396,5.8461442,2524.2,2524.1,0.79198]
[1749327501799,7.1111442,2524.2,2524.1,0.79198]
[1749327503297,0.792,2524.1,2524.0,0.79199]
[1749327503596,3.3030942,2524.1,2524.0,0.79199]
[1749327512503,6.5108942,2524.1,2524.0,0.79199]
[1749327514705,4.3839942,2524.1,2524.0,0.79199]
[1749327515801,5.1759742,2524.1,2524.0,0.79199]
[1749327517216,4.3839942,2524.1,2524.0,0.79199]
[1749327519010,5.1759742,2524.1,2524.0,0.79199]
[1749327521820,5.1759742,2524.1,2524.0,5.50299]
[1749327524517,4.3839942,2524.1,2524.0,5.50299]
[1749327526020,5.1759742,2524.1,2524.0,5.50299]
[1749327526220,6.5318742,2524.1,2524.0,5.50299]
[1749327529126,5.7398942,2524.1,2524.0,5.50299]
[1749327534426,2.5320942,2524.1,2524.0,5.50299]
[1749327534628,5.7398942,2524.1,2524.0,5.50299]
[1749327537531,5.73541846,2524.1,2524.0,5.50299]
[1749327538028,2.52761846,2524.1,2524.0,5.50299]
[1749327538224,5.73541846,2524.1,2524.0,5.50299]
[1749327543325,6.52739846,2524.1,2524.0,5.50299]
[1749327543634,4.37951846,2524.1,2524.0,5.50299]
[1749327545325,4.37951846,2524.1,2524.0,0.79199]
[1749327545526,4.37951846,2524.1,2524.0,5.50299]
[1749327547531,5.72051846,2524.1,2524.0,5.50299]
[1749327549530,1.17171846,2524.1,2524.0,5.50299]
[1749327549736,3.2078,2524.4,2524.3,0.79192]
[1749327549933,4.3749117,2524.4,2524.3,5.50292]
[1749327550134,5.6646117,2524.4,2524.3,0.79192]
[1749327550430,5.6646117,2524.4,2524.3,5.50292]
[1749327550631,5.6646117,2524.4,2524.3,0.79192]
[1749327550833,6.4565017,2524.4,2524.3,4.711]
[1749327551032,6.4565017,2524.4,2524.3,5.50292]
[1749327551732,0.79193,2524.3,2524.2,0.79193]
[1749327551932,3.23438458,2524.3,2524.2,5.49893]
[1749327555341,2.44245458,2524.3,2524.2,5.49893]
[1749327556541,1.2897,2524.3,2524.2,5.49893]
[1749327558146,2.08162,2524.3,2524.2,5.49893]
[1749327558740,2.08162,2524.3,2524.2,0.79193]
[1749327558941,0.79196,2524.2,2524.1,0.79196]
[1749327559137,1.935,2524.2,2524.1,5.49896]
[1749327564153,2.72695,2524.2,2524.1,5.49896]
[1749327564548,1.935,2524.2,2524.1,5.49896]
[1749327566149,5.1428,2524.2,2524.1,5.49896]
[1749327566547,6.29522299,2524.2,2524.1,5.49896]
[1749327567852,5.1428,2524.2,2524.1,5.49896]
[1749327568053,6.29525001,2524.2,2524.1,5.49896]
[1749327568252,5.1428,2524.2,2524.1,5.49896]
[1749327568560,7.08725596,2524.2,2524.1,5.49896]
[1749327568761,6.29530596,2524.2,2524.1,5.49896]
[1749327568958,5.1428,2524.2,2524.1,5.49896]
[1749327569261,6.2952255,2524.2,2524.1,5.49896]
[1749327569555,0.79204,2523.9,2523.8,0.00594024]
[1749327569758,3.99984,2523.9,2523.8,0.00594024]
[1749327569960,3.99984,2523.9,2523.8,4.71294024]
[1749327570657,4.68324,2523.9,2523.8,5.50501024]
[1749327572462,1.47544,2523.9,2523.8,5.50501024]
[1749327572758,4.68324,2523.9,2523.8,0.79801024]
[1749327572960,4.68324,2523.9,2523.8,4.71294024]
[1749327573354,0.7922,2523.4,2523.3,4.707]
[1749327573555,3.2078,2523.4,2523.2,5.49925]
[1749327573757,0.79223,2523.3,2523.2,0.79225]
[1749327573954,0.6498,2523.3,2523.2,5.49925]
[1749327576561,1.44202,2523.3,2523.2,5.49925]
[1749327576760,0.6498,2523.3,2523.2,5.49925]
[1749327577155,1.44202,2523.3,2523.2,5.49925]
[1749327577356,0.6498,2523.3,2523.0,0.00594024]
[1749327577563,4.00009,2523.1,2523.0,4.71294024]
[1749327577957,4.65159,2523.1,2523.0,4.71294024]
[1749327579767,3.8593,2523.1,2523.0,5.50527024]
[1749327580061,3.2078,2523.1,2523.0,5.50527024]
[1749327580263,4.0001,2523.1,2523.0,5.50527024]
[1749327581364,4.0001,2523.1,2523.0,4.71294024]
[1749327582861,0.7923,2523.1,2523.0,4.71294024]
[1749327583059,4.0001,2523.1,2523.0,4.71294024]
[1749327583460,1.98083,2523.0,2522.0,4.703]
[1749327583763,4.00036,2522.3,2522.2,0.79258]
[1749327583960,3.2078,2522.3,2522.2,0.79258]
[1749327584161,3.2078,2522.3,2522.0,4.703]
[1749327584564,4.00038,2522.3,2522.1,0.7926]
[1749327584756,4.00035,2522.3,2522.2,4.704]
[1749327585564,4.00035,2522.3,2522.2,5.49658]
[1749327586060,4.00035,2522.3,2522.2,0.79258]
[1749327586262,5.37465,2522.3,2522.2,5.49658]
[1749327586661,5.2799,2522.3,2522.2,5.49658]
[1749327588961,5.2799,2522.3,2522.2,0.79258]
[1749327589157,5.2799,2522.3,2522.2,5.49658]
[1749327589564,3.2078,2522.3,2522.2,5.49658]
[1749327590771,3.27671172,2522.3,2522.2,5.49658]
[1749327595678,0.06891172,2522.3,2522.2,5.49658]
[1749327601579,0.06891172,2522.3,2522.2,0.79258]
[1749327601783,0.79264,2522.0,2521.9,0.00594024]
[1749327601981,4.00044,2522.0,2521.9,4.71094024]
[1749327602581,4.00044,2522.0,2521.9,0.79861024]
[1749327602780,4.00044,2522.0,2521.9,5.50361024]
[1749327602981,3.2078,2522.0,2521.9,5.50361024]
[1749327603181,4.00044,2522.0,2521.9,4.71094024]
[1749327604181,4.00044,2522.0,2521.9,5.50362024]
[1749327604682,4.00044,2522.0,2521.9,4.71094024]
[1749327605987,4.06935172,2522.0,2521.9,4.71094024]
[1749327608286,4.06935172,2522.0,2521.9,5.50361024]
[1749327608791,4.06935172,2522.0,2521.9,0.79861024]
[1749327608983,4.06935172,2522.0,2521.9,5.50461024]
[1749327609289,3.27671172,2522.0,2521.9,5.50461024]
[1749327609786,4.55371172,2522.0,2521.9,5.50461024]
[1749327610989,5.34635172,2522.0,2521.9,5.50461024]
[1749327612085,5.34635172,2522.0,2521.9,0.79861024]
[1749327612388,5.34635172,2522.0,2521.9,5.50061024]
[1749327612786,5.34635172,2522.0,2521.9,0.79861024]
[1749327613091,5.34635172,2522.0,2521.9,5.50061024]
[1749327613777,5.34635172,2522.0,2521.9,4.70794024]
[1749327613982,18.68361197,2522.0,2520.8,1.98253]
[1749327614192,0.79284,2521.4,2520.9,6.68449]
[1749327614487,1.9312,2521.3,2521.2,0.79289]
[1749327614686,1.9312,2521.3,2521.2,5.49489]
[1749327618984,1.9312,2521.3,2521.2,0.79289]
[1749327619486,1.9312,2521.3,2521.2,5.49589]
[1749327619986,0.663,2521.3,2521.2,5.49589]
[1749327620190,3.8444,2521.5,2521.4,0.79283]
[1749327622790,3.8444,2521.5,2521.4,5.49583]
[1749327625090,3.2078,2521.5,2521.4,5.49583]
[1749327628101,4.5051,2521.5,2521.4,5.49583]
[1749327631195,4.5051,2521.5,2521.4,0.79283]
[1749327631395,4.5051,2521.5,2521.4,5.49583]
[1749327634402,4.57401172,2521.5,2521.4,5.49583]
[1749327634802,4.57401172,2521.5,2521.4,0.79283]
[1749327635004,4.57401172,2521.5,2521.4,5.49583]
[1749327635404,3.27671172,2521.5,2521.4,5.49583]
[1749327639000,0.06891172,2521.5,2521.4,5.49583]
[1749327639204,3.27671172,2521.5,2521.4,5.49583]
[1749327641209,0.06891172,2521.5,2521.4,5.49583]
[1749327649410,0.06891172,2521.5,2521.4,0.79283]
[1749327649611,3.27671172,2521.5,2521.4,5.49183]
[1749327650011,5.25331172,2521.5,2521.4,5.49183]
[1749327654319,5.25331172,2521.5,2521.4,0.79283]
[1749327654519,5.25331172,2521.5,2521.4,5.49183]
[1749327657920,3.93051172,2521.5,2521.4,5.49183]
[1749327660321,0.72271172,2521.5,2521.4,5.49183]
[1749327661118,2.02911172,2521.5,2521.4,5.49183]
[1749327661519,2.02911172,2521.5,2521.4,0.79283]
[1749327661716,2.02911172,2521.5,2521.4,5.49183]
[1749327666121,0.79291,2521.1,2521.0,4.70494024]
[1749327666329,3.2078,2521.1,2521.0,5.49789024]
[1749327666813,5.97961,2521.1,2521.0,5.49789024]
[1749327667017,5.1867,2521.1,2521.0,5.49789024]
[1749327667622,5.97961,2521.1,2521.0,5.49789024]
[1749327669046,5.1867,2521.1,2521.0,5.49789024]
[1749327676227,5.1867,2521.1,2520.4,3.2078]
[1749327676432,4.00082,2520.8,2520.7,0.79304]
[1749327676835,3.2078,2520.8,2520.7,0.79304]
[1749327677235,4.5059,2520.8,2520.7,0.79304]
[1749327678535,5.1927,2520.8,2520.7,0.79304]
[1749327681235,5.26161172,2520.8,2520.7,0.79304]
[1749327683338,5.26161172,2520.8,2520.5,4.69896016]
[1749327683638,1.3774,2520.7,2520.5,4.69896016]
[1749327683838,1.3774,2520.7,2520.6,0.79304]
[1749327685440,3.8946,2520.8,2520.7,0.79304]
[1749327685745,3.2078,2520.8,2520.7,0.79304]
[1749327686735,0.00594024,2521.0,2520.9,0.79299]
[1749327686936,0.00594024,2521.0,2520.9,5.48799]
[1749327687136,3.2078,2521.4,2520.9,10.48799]
[1749327687343,0.6925,2521.5,2521.4,0.79282]
[1749327687644,0.6925,2521.5,2521.4,5.48782]
[1749327688239,1.28914024,2521.7,2521.6,0.79276]
[1749327694248,1.35805196,2521.7,2521.6,0.79276]
[1749327694645,2.15078196,2521.7,2521.6,0.79276]
[1749327695042,1.35805196,2521.7,2521.6,0.79276]
[1749327695247,0.00594024,2521.7,2521.6,0.79276]
[1749327698443,0.07485196,2521.7,2521.6,0.79276]
[1749327701349,0.00594024,2521.7,2521.6,0.79276]
[1749327703955,0.79867024,2521.7,2521.6,0.79276]
[1749327704258,0.00594024,2521.7,2521.6,0.79276]
[1749327704443,0.07485196,2521.7,2521.6,0.79276]
[1749327709259,0.86758196,2521.7,2521.6,0.79276]
[1749327709454,0.07485196,2521.7,2521.6,0.79276]
[1749327715065,0.76625196,2521.7,2521.6,0.79276]
[1749327715560,1.55898196,2521.7,2521.6,0.79276]
[1749327715763,2.95588196,2521.7,2521.6,0.79276]
[1749327716162,4.10995572,2521.7,2521.6,0.79276]
[1749327716670,3.31722572,2521.7,2521.4,0.79281]
[1749327716963,3.2078,2521.5,2521.4,0.79281]
[1749327717164,3.2078,2521.5,2521.4,5.48381]
[1749327717354,4.4917,2521.5,2521.4,5.48381]
[1749327717562,5.28449,2521.5,2521.4,5.48381]
[1749327717862,4.4917,2521.5,2521.4,5.48381]
[1749327720668,4.4917,2521.5,2521.4,0.79281]
[1749327720870,4.4917,2521.5,2521.4,5.48381]
[1749327722372,4.4917,2521.5,2521.4,0.79281]
[1749327722567,4.4917,2521.5,2521.4,5.48381]
[1749327724770,4.4917,2521.5,2521.4,0.79281]
[1749327724970,4.4917,2521.5,2521.4,5.48381]
[1749327728773,4.56061172,2521.5,2521.4,5.48381]
[1749327729775,1.35281172,2521.5,2521.4,5.48381]
[1749327732176,2.52394215,2521.5,2521.4,5.48481]
[1749327734664,1.35281172,2521.5,2521.4,5.48481]
[1749327735277,0.06891172,2521.5,2521.4,5.48481]
[1749327735877,0.6711,2521.6,2521.5,0.79279]
[1749327736078,1.8421075,2521.6,2521.5,0.79279]
[1749327736272,3.2092075,2521.6,2521.5,0.79279]
[1749327740084,3.27811922,2521.6,2521.5,0.79279]
[1749327741674,1.23991922,2521.6,2521.5,0.79279]
[1749327742384,0.06891172,2521.6,2521.5,0.79279]
[1749327742884,0.06891172,2521.6,2521.5,2.07679]
[1749327745692,0.06891172,2521.6,2521.5,0.79279]
[1749327745986,0.06891172,2521.6,2521.5,5.48079]
[1749327746189,0.70781172,2521.6,2521.5,5.48079]
[1749327747882,0.06891172,2521.6,2521.5,5.48079]
[1749327754681,0.06891172,2521.6,2521.5,6.87879]
[1749327757692,3.8861,2522.0,2521.9,0.79267]
[1749327757893,3.2078,2522.3,2522.2,0.79257]
[1749327758088,1.81759483,2522.3,2522.2,0.79257]
[1749327758294,3.8693,2522.6,2522.3,0.79254]
[1749327758502,2.45909275,2522.4,2522.3,5.47954]
[1749327758692,0.6476,2522.5,2522.4,0.79251]
[1749327758887,1.81684515,2522.5,2522.4,0.79251]
[1749327759599,0.6476,2522.5,2522.4,0.79251]
[1749327759897,3.19674261,2522.5,2522.4,0.79251]
[1749327760297,3.98922261,2522.5,2522.4,0.79251]
[1749327760497,3.98922261,2522.5,2522.4,5.47951]
[1749327761796,3.19674261,2522.5,2522.4,5.47951]
[1749327762604,1.16884261,2522.5,2522.4,5.47951]
[1749327762805,3.21374024,2522.6,2522.5,0.79248]
[1749327766306,3.2078,2522.9,2522.8,0.79238]
[1749327766499,3.2078,2523.3,2522.8,4.682]
[1749327766811,1.42646,2523.2,2523.1,0.79229]
[1749327767102,2.71886,2523.2,2523.0,0.7923]
[1749327767300,1.9266,2523.2,2523.1,0.79229]
[1749327770308,1.99551172,2523.2,2523.1,0.79229]
[1749327779330,1.99551172,2523.2,2522.6,5.1889]
[1749327779520,3.2078,2523.0,2522.7,4.681]
[1749327779717,2.0151,2522.9,2522.8,4.681]
[1749327779923,2.80746,2522.9,2522.8,0.79238]
[1749327780226,2.80746,2522.9,2522.8,5.47338]
[1749327780824,2.0151,2522.9,2522.8,0.79238]
[1749327781029,2.0151,2522.9,2522.7,0.79241]
[1749327781229,1.9254,2522.8,2522.7,0.79241]
[1749327781430,0.79244,2522.7,2522.6,0.79244]
[1749327781633,5.26324,2522.7,2522.6,0.79244]
[1749327784229,4.4708,2522.7,2522.6,0.79244]
[1749327784532,5.26322,2522.7,2522.6,0.79244]
[1749327785625,5.33213172,2522.7,2522.5,0.79246]
[1749327785822,1.3886,2522.6,2522.5,0.79246]
[1749327787328,2.18106,2522.6,2522.5,0.79248]
[1749327790135,1.3886,2522.6,2522.5,0.79248]
[1749327791230,4.5964,2522.6,2522.5,0.79248]
[1749327799443,5.38885,2522.6,2522.5,0.79248]
[1749327801044,5.45776172,2522.6,2522.5,0.79248]
[1749327801439,4.66531172,2522.6,2522.5,0.79248]
[1749327801948,5.45776172,2522.6,2522.5,0.79248]
[1749327802446,4.66531172,2522.6,2522.5,0.79248]
[1749327803046,5.45776172,2522.6,2522.5,0.79248]
[1749327803246,4.66531172,2522.6,2522.5,0.79248]
[1749327803447,1.45751172,2522.6,2522.5,0.79248]
[1749327804747,4.66531172,2522.6,2522.5,0.79248]
[1749327804950,5.45776172,2522.6,2522.5,0.79248]
[1749327809550,4.66531172,2522.6,2522.5,0.79248]
[1749327809746,5.83893221,2522.6,2522.5,0.79248]
[1749327810551,6.63138221,2522.6,2522.5,0.79248]
[1749327811854,5.83893221,2522.6,2522.5,0.79248]
[1749327812555,6.63138221,2522.6,2522.5,0.79248]
[1749327821661,3.42358221,2522.6,2522.5,0.79248]
[1749327823769,0.79249,2522.5,2522.4,0.79249]
[1749327823960,2.24997172,2522.6,2522.5,0.79248]
[1749327824160,3.41905235,2522.6,2522.5,0.79248]
[1749327829178,3.41905235,2522.6,2522.1,0.00594024]
[1749327829179,0.79257,2522.2,2522.1,0.00594024]
[1749327829371,4.00037,2522.3,2522.1,0.00594024]
[1749327829567,4.00037,2522.3,2522.1,0.79853024]
[1749327829767,3.19710622,2522.2,2522.1,0.79853024]
[1749327830073,2.0164,2522.2,2522.1,0.79853024]
[1749327834884,2.80897,2522.2,2522.1,0.79853024]
[1749327835081,2.0164,2522.2,2522.1,0.79853024]
[1749327836684,2.80897,2522.2,2522.1,0.79853024]
[1749327836985,0.6784,2522.2,2522.1,0.79853024]
[1749327837492,1.47097,2522.2,2522.1,0.79853024]
[1749327838187,0.6784,2522.2,2522.1,0.79853024]
[1749327839585,1.47097,2522.2,2522.1,0.79853024]
[1749327841290,3.2078,2522.3,2522.2,0.79257]
[1749327845384,3.2078,2522.3,2522.2,0.86148172]
[1749327845589,0.79248,2522.5,2522.4,0.79251]
[1749327845788,5.17930195,2522.5,2522.4,5.46551]
[1749327846488,1.97150195,2522.5,2522.4,5.46551]
[1749327846690,5.17930195,2522.5,2522.4,4.673]
[1749327846988,5.31298,2522.5,2522.4,4.673]
[1749327847190,5.31298,2522.5,2522.4,5.46551]
[1749327847492,6.49209891,2522.5,2522.4,5.46551]
[1749327849191,6.49209891,2522.5,2522.4,4.673]
[1749327850388,6.49209891,2522.5,2522.4,5.46551]
[1749327851491,7.17849891,2522.5,2522.4,5.46551]
[1749327851795,7.17849891,2522.5,2522.4,4.673]
[1749327852493,7.17849891,2522.5,2522.4,5.46551]
[1749327852995,7.17849891,2522.5,2522.4,4.673]
[1749327853892,7.17849891,2522.5,2522.4,5.46551]
[1749327855090,7.17849891,2522.5,2522.4,4.673]
[1749327858790,5.17939891,2522.5,2522.4,5.46551]
[1749327859395,4.38691891,2522.5,2522.4,5.46551]
[1749327859702,5.1462,2522.8,2522.7,0.79241]
[1749327859889,6.32687048,2522.8,2522.7,0.79241]
[1749327860097,4.38847048,2522.8,2522.7,0.79241]
[1749327860300,3.2078,2522.8,2522.7,0.79241]